lending/lending_fUSD_20250429
["ID","MTS","AMOUNT","RATE_DAILY","PERIOD"]
[359282461,1745891468933,-470.0,0.00028219,2]
[359282462,1745891468943,-470.0,0.00028219,2]
[359282463,1745891468952,-705.97,0.00028219,2]
[359282464,1745891468961,-470.0,0.00028219,2]
[359282465,1745891468971,-470.0,0.00028219,2]
[359282466,1745891468980,-470.0,0.00028219,2]
[359282467,1745891468990,-625.13,0.00028219,2]
[359282468,1745891469000,-152.476605,0.00028219,7]
[359282469,1745891469011,-470.0,0.00028219,2]
[359282470,1745891469020,-470.0,0.00028219,2]
[359282471,1745891469030,-470.0,0.00028219,2]
[359282472,1745891469039,-554.64,0.00028219,2]
[359282473,1745891469049,-470.0,0.00028219,2]
[359282474,1745891469058,-152.476605,0.00028219,7]
[359282475,1745891469068,-470.0,0.00028219,2]
[359282476,1745891469079,-470.0,0.00028219,2]
[359282477,1745891469089,-3595.20961907,0.00028271,2]
[359282478,1745891469098,-5714.3562124,0.00028271,2]
[359282479,1745891469108,-15250.45059778,0.00028432,2]
[359282480,1745891469118,-153.688266,0.00028472,7]
[359282481,1745891469127,-151.0,0.00028472,7]
[359282482,1745891469137,-151.0,0.00028472,7]
[359282483,1745891469146,-500.0,0.00028473,5]
[359282484,1745891469155,-300.0,0.00028482,2]
[359282485,1745891469165,-277.17718286,0.00028483,2]
[359282486,1745891469174,-151.0,0.00028483,7]
[359282487,1745891469183,-795.0,0.00028491,2]
[359282488,1745891469192,-470.0,0.00028491,2]
[359282489,1745891469202,-1129.56,0.00028491,2]
[359282490,1745891469212,-470.0,0.00028491,2]
[359282491,1745891469221,-905.59,0.00028491,2]
[359282492,1745891469230,-477.97,0.00028491,2]
[359282493,1745891469239,-470.0,0.00028491,2]
[359282494,1745891469248,-849.57,0.00028491,2]
[359282495,1745891469257,-576.52,0.00028491,2]
[359282496,1745891469266,-470.0,0.00028492,2]
[359282497,1745891469276,-270.42492813,0.00028492,2]
[359282498,1745891469285,-628.36,0.00028492,2]
[359282499,1745891469294,-263.39233619,0.00028492,2]
[359282500,1745891469303,-609.86,0.00028492,2]
[359282501,1745891469313,-754.55,0.00028492,2]
[359282502,1745891469322,-872.05,0.00028492,2]
[359282503,1745891469332,-470.0,0.00028492,2]
[359282504,1745891469342,-470.0,0.00028492,2]
[359282505,1745891469352,-470.0,0.00028492,2]
[359282506,1745891469361,-470.0,0.00028492,2]
[359282507,1745891469370,-470.0,0.00028492,2]
[359282508,1745891469380,-470.0,0.00028492,2]
[359282509,1745891469389,-1290.26,0.00028492,2]
[359282510,1745891469399,-587.15,0.00028492,2]
[359282511,1745891469409,-470.0,0.00028492,2]
[359282512,1745891469420,-532.45,0.00028492,2]
[359282513,1745891469431,-470.0,0.00028492,2]
[359282514,1745891469442,-470.0,0.00028492,2]
[359282515,1745891469452,-645.07,0.00028492,2]
[359282516,1745891469462,-641.65,0.00028492,2]
[359282517,1745891469471,-470.0,0.00028492,2]
[359282518,1745891469480,-470.0,0.00028492,2]
[359282519,1745891469490,-608.47,0.00028492,2]
[359282520,1745891469500,-470.0,0.00028492,2]
[359282521,1745891469511,-470.0,0.00028492,2]
[359282522,1745891469521,-645.34,0.00028492,2]
[359282523,1745891469530,-700.47,0.00028492,2]
[359282524,1745891469539,-481.52,0.00028492,2]
[359282525,1745891469549,-538.62,0.00028492,2]
[359282526,1745891469559,-470.0,0.00028492,2]
[359282527,1745891469571,-599.91,0.00028492,2]
[359282528,1745891469582,-506.91,0.00028492,2]
[359282529,1745891469592,-470.0,0.00028492,2]
[359282530,1745891469601,-470.0,0.00028492,2]
[359282531,1745891469613,-470.0,0.00028492,2]
[359282532,1745891469625,-736.35,0.00028492,2]
[359282533,1745891469634,-470.0,0.00028492,2]
[359282534,1745891469644,-470.0,0.00028492,2]
[359282535,1745891469653,-470.0,0.00028492,2]
[359282536,1745891469663,-470.0,0.00028492,2]
[359282537,1745891469674,-787.86,0.00028492,2]
[359282538,1745891469684,-470.0,0.00028492,2]
[359282539,1745891469694,-1073.71,0.00028492,2]
[359282540,1745891469703,-534.24,0.00028492,2]
[359282541,1745891469712,-470.0,0.00028492,2]
[359282542,1745891469721,-470.0,0.00028492,2]
[359282543,1745891469731,-470.0,0.00028492,2]
[359282544,1745891469740,-271.8761319,0.00028492,2]
[359282545,1745891469749,-876.11,0.00028492,2]
[359282546,1745891469759,-704.63,0.00028492,2]
[359282547,1745891469770,-323.83835421,0.00028492,2]
[359282548,1745891469779,-491.93,0.00028492,2]
[359282549,1745891469788,-470.0,0.00028492,2]
[359282550,1745891469797,-470.0,0.00028492,2]
[359282551,1745891469806,-546.4,0.00028492,2]
[359282552,1745891469816,-470.0,0.00028492,2]
[359282553,1745891469827,-470.0,0.00028492,2]
[359282554,1745891469836,-730.68,0.00028492,2]
[359282555,1745891469847,-493.24,0.00028492,2]
[359282556,1745891469856,-470.0,0.00028492,2]
[359282557,1745891469866,-470.0,0.00028492,2]
[359282558,1745891469875,-470.0,0.00028492,2]
[359282559,1745891469884,-470.0,0.00028492,2]
[359282560,1745891469894,-534.35,0.00028492,2]
[359282561,1745891469903,-470.0,0.00028492,2]
[359282562,1745891469913,-470.0,0.00028492,2]
[359282563,1745891469924,-470.0,0.00028492,2]
[359282564,1745891469934,-470.0,0.00028492,2]
[359282565,1745891469944,-470.0,0.00028492,2]
[359282566,1745891469954,-470.0,0.00028492,2]
[359282567,1745891469964,-599.0,0.00028492,2]
[359282568,1745891469974,-707.83,0.00028492,2]
[359282569,1745891469984,-470.0,0.00028492,2]
[359282570,1745891469993,-892.56,0.00028492,2]
[359282571,1745891470003,-470.0,0.00028492,2]
[359282572,1745891470012,-484.16,0.00028492,2]
[359282573,1745891470021,-470.0,0.00028492,2]
[359282574,1745891470032,-706.51,0.00028492,2]
[359282575,1745891470041,-470.0,0.00028492,2]
[359282576,1745891470052,-631.09,0.00028492,2]
[359282577,1745891470061,-622.66,0.00028492,2]
[359282578,1745891470070,-731.19,0.00028492,2]
[359282579,1745891470081,-470.0,0.00028492,2]
[359282580,1745891470091,-131309.72,0.00028492,2]
[359282581,1745891470100,-470.0,0.00028492,2]
[359282582,1745891470111,-17218.54,0.00028492,2]
[359282583,1745891470121,-551.16,0.00028492,2]
[359282584,1745891470130,-470.0,0.00028492,2]
[359282585,1745891470140,-500.0,0.00028492,2]
[359282586,1745891470149,-746.58,0.00028492,2]
[359282587,1745891470159,-829.18,0.00028492,2]
[359282588,1745891470168,-151.0,0.00028492,7]
[359282589,1745891470178,-470.0,0.00028492,2]
[359282590,1745891470188,-582.32,0.00028492,2]
[359282591,1745891470198,-661.28,0.00028492,2]
[359282592,1745891470207,-470.0,0.00028492,2]
[359282593,1745891470216,-470.0,0.00028492,2]
[359282594,1745891470226,-760.0,0.00028492,2]
[359282595,1745891470235,-572.98,0.00028492,2]
[359282596,1745891470245,-1706.88,0.00028492,2]
[359282597,1745891470254,-289.10877654,0.00028492,2]
[359282598,1745891470263,-470.0,0.00028492,2]
[359282599,1745891470273,-830.4,0.00028492,2]
[359282600,1745891470282,-470.0,0.00028492,2]
[359282601,1745891470292,-470.0,0.00028492,2]
[359282602,1745891470301,-1621.51,0.00028492,2]
[359282603,1745891470311,-573.74,0.00028492,2]
[359282604,1745891470320,-583.09,0.00028492,2]
[359282605,1745891470330,-470.0,0.00028492,2]
[359282606,1745891470339,-470.0,0.00028492,2]
[359282607,1745891470349,-654.01,0.00028492,2]
[359282608,1745891470358,-470.0,0.00028492,2]
[359282609,1745891470367,-587.58,0.00028492,2]
[359282610,1745891470377,-825.51,0.00028492,2]
[359282611,1745891470386,-470.0,0.00028492,2]
[359282612,1745891470396,-1262.26,0.00028492,2]
[359282613,1745891470405,-492.78,0.00028492,2]
[359282614,1745891470414,-470.0,0.00028492,2]
[359282615,1745891470423,-874.35,0.00028492,2]
[359282616,1745891470433,-470.0,0.00028492,2]
[359282617,1745891470442,-4589.67,0.00028492,2]
[359282618,1745891470451,-470.0,0.00028492,2]
[359282619,1745891470460,-689.95,0.00028492,2]
[359282620,1745891470469,-470.0,0.00028492,2]
[359282621,1745891470478,-470.0,0.00028492,2]
[359282622,1745891470487,-1187.94,0.00028492,2]
[359282623,1745891470497,-685.45,0.00028492,2]
[359282624,1745891470506,-475.42,0.00028492,2]
[359282625,1745891470515,-3701.31,0.00028492,2]
[359282626,1745891470524,-1069.98,0.00028492,2]
[359282627,1745891470534,-524.14,0.00028492,2]
[359282628,1745891470543,-652.76,0.00028492,2]
[359282629,1745891470552,-1325.98,0.00028492,2]
[359282630,1745891470562,-470.0,0.00028492,2]
[359282631,1745891470571,-1133.42,0.00028492,2]
[359282632,1745891470582,-470.0,0.00028492,2]
[359282633,1745891470591,-470.0,0.00028492,2]
[359282634,1745891470600,-470.0,0.00028492,2]
[359282635,1745891470611,-1236.99,0.00028492,2]
[359282636,1745891470620,-1544.01,0.00028492,2]
[359282637,1745891470630,-151.0,0.00028492,7]
[359282638,1745891470641,-275.529254,0.00028492,7]
[359282639,1745891470651,-592.57,0.00028492,2]
[359282640,1745891470660,-2592.3,0.00028492,2]
[359282641,1745891470671,-3608.48,0.00028492,2]
[359282642,1745891470680,-470.0,0.00028492,2]
[359282643,1745891470690,-470.0,0.00028492,2]
[359282644,1745891470700,-2078.86,0.00028492,2]
[359282645,1745891470711,-794.88,0.00028492,2]
[359282646,1745891470721,-470.0,0.00028492,2]
[359282647,1745891470730,-1330.27,0.00028492,2]
[359282648,1745891470739,-636.72,0.00028492,2]
[359282649,1745891470750,-603.25,0.00028492,2]
[359282650,1745891470760,-511.97,0.00028492,2]
[359282651,1745891470770,-470.0,0.00028492,2]
[359282652,1745891470780,-470.0,0.00028492,2]
[359282653,1745891470790,-470.0,0.00028492,2]
[359282654,1745891470800,-958.25,0.00028492,2]
[359282655,1745891470811,-152.476605,0.00028492,7]
[359282656,1745891470822,-152.476605,0.00028492,7]
[359282657,1745891470832,-352.65,0.00028492,2]
[359282658,1745891470841,-735.84,0.00028493,2]
[359282659,1745891470852,-470.0,0.00028493,2]
[359282660,1745891470861,-470.0,0.00028493,2]
[359282661,1745891470870,-1000.0,0.00028493,2]
[359282662,1745891470879,-513.1,0.00028493,2]
[359282663,1745891470889,-470.0,0.00028493,2]
[359282664,1745891470898,-789.47,0.00028493,2]
[359282665,1745891470908,-470.0,0.00028493,2]
[359282666,1745891470917,-521.81,0.00028493,2]
[359282667,1745891470926,-470.0,0.00028493,2]
[359282668,1745891470936,-472.95,0.00028493,2]
[359282669,1745891470946,-470.0,0.00028493,2]
[359282670,1745891470955,-470.0,0.00028493,2]
[359282671,1745891470964,-504.73,0.00028493,2]
[359282672,1745891470973,-299.30163811,0.00028493,2]
[359282673,1745891470983,-498.65095901,0.00028493,2]
[359282674,1745891470992,-472.65720014,0.00028493,2]
[359282675,1745891471001,-470.0,0.00028493,2]
[359282676,1745891471011,-470.0,0.00028493,2]
[359282677,1745891471020,-470.0,0.00028493,2]
[359282678,1745891471029,-470.0,0.00028493,2]
[359282679,1745891471039,-470.0,0.00028493,2]
[359282680,1745891471048,-470.0,0.00028493,2]
[359282681,1745891471057,-470.0,0.00028493,2]
[359282682,1745891471066,-470.0,0.00028493,2]
[359282683,1745891471076,-470.0,0.00028493,2]
[359282684,1745891471086,-470.0,0.00028493,2]
[359282685,1745891471095,-470.0,0.00028493,2]
[359282686,1745891471105,-470.0,0.00028493,2]
[359282687,1745891471114,-470.0,0.00028493,2]
[359282688,1745891471124,-470.0,0.00028493,2]
[359282689,1745891471134,-470.0,0.00028493,2]
[359282690,1745891471143,-470.0,0.00028493,2]
[359282691,1745891471153,-470.0,0.00028493,2]
[359282692,1745891471163,-470.0,0.00028493,2]
[359282693,1745891471172,-470.0,0.00028493,2]
[359282694,1745891471181,-470.0,0.00028493,2]
[359282695,1745891471191,-470.0,0.00028493,2]
[359282696,1745891471201,-470.0,0.00028493,2]
[359282697,1745891471211,-470.0,0.00028493,2]
[359282698,1745891471220,-470.0,0.00028493,2]
[359282699,1745891471230,-470.0,0.00028493,2]
[359282700,1745891471239,-521.34,0.00028493,2]
[359282701,1745891471248,-470.0,0.00028493,2]
[359282702,1745891471258,-470.0,0.00028493,2]
[359282703,1745891471267,-470.0,0.00028493,2]
[359282704,1745891471277,-470.0,0.00028493,2]
[359282705,1745891471287,-470.0,0.00028493,2]
[359282706,1745891471296,-470.0,0.00028493,2]
[359282707,1745891471305,-470.0,0.00028493,2]
[359282708,1745891471315,-470.0,0.00028493,2]
[359282709,1745891471324,-470.0,0.00028493,2]
[359282710,1745891471335,-484.3,0.00028493,2]
[359282711,1745891471344,-470.0,0.00028493,2]
[359282712,1745891471353,-470.0,0.00028493,2]
[359282713,1745891471361,-470.0,0.00028493,2]
[359282714,1745891471370,-470.0,0.00028493,2]
[359282715,1745891471380,-470.0,0.00028493,2]
[359282716,1745891471389,-571.14,0.00028493,2]
[359282717,1745891471398,-470.0,0.00028493,2]
[359282718,1745891471407,-545.09,0.00028493,2]
[359282719,1745891471417,-470.0,0.00028493,2]
[359282720,1745891471427,-470.0,0.00028493,2]
[359282721,1745891471438,-470.0,0.00028493,2]
[359282722,1745891471447,-661.1,0.00028493,2]
[359282723,1745891471456,-470.0,0.00028493,2]
[359282724,1745891471466,-1617.95,0.00028493,2]
[359282725,1745891471475,-470.0,0.00028493,2]
[359282726,1745891471485,-470.0,0.00028493,2]
[359282727,1745891471495,-470.0,0.00028493,2]
[359282728,1745891471504,-470.0,0.00028493,2]
[359282729,1745891471515,-518.75,0.00028493,2]
[359282730,1745891471524,-470.0,0.00028493,2]
[359282731,1745891471535,-470.0,0.00028493,2]
[359282732,1745891471547,-470.0,0.00028493,2]
[359282733,1745891471559,-470.0,0.00028493,2]
[359282734,1745891471570,-470.0,0.00028493,2]
[359282735,1745891471581,-470.0,0.00028493,2]
[359282736,1745891471591,-789.9,0.00028493,2]
[359282737,1745891471600,-470.0,0.00028493,2]
[359282738,1745891471610,-470.0,0.00028493,2]
[359282739,1745891471621,-470.0,0.00028493,2]
[359282740,1745891471632,-470.0,0.00028493,2]
[359282741,1745891471642,-845.94,0.00028493,2]
[359282742,1745891471652,-470.0,0.00028493,2]
[359282743,1745891471661,-470.0,0.00028493,2]
[359282744,1745891471671,-493.82,0.00028493,2]
[359282745,1745891471681,-470.0,0.00028493,2]
[359282746,1745891471690,-470.0,0.00028493,2]
[359282747,1745891471701,-470.0,0.00028493,2]
[359282748,1745891471711,-470.0,0.00028493,2]
[359282749,1745891471721,-706.07,0.00028493,2]
[359282750,1745891471731,-575.23,0.00028493,2]
[359282751,1745891471740,-470.0,0.00028493,2]
[359282752,1745891471750,-470.0,0.00028493,2]
[359282753,1745891471761,-470.0,0.00028493,2]
[359282754,1745891471773,-633.13,0.00028493,2]
[359282755,1745891471783,-330.66711781,0.00028493,2]
[359282756,1745891471792,-470.0,0.00028493,2]
[359282757,1745891471803,-470.0,0.00028493,2]
[359282758,1745891471813,-547.18,0.00028493,2]
[359282759,1745891471824,-470.0,0.00028493,2]
[359282760,1745891471834,-470.0,0.00028493,2]
[359282761,1745891471846,-470.0,0.00028493,2]
[359282762,1745891471856,-470.0,0.00028493,2]
[359282763,1745891471865,-470.0,0.00028493,2]
[359282764,1745891471875,-470.0,0.00028493,2]
[359282765,1745891471884,-470.0,0.00028493,2]
[359282766,1745891471895,-721.02,0.00028493,2]
[359282767,1745891471905,-470.0,0.00028493,2]
[359282768,1745891471916,-470.0,0.00028493,2]
[359282769,1745891471927,-810.22,0.00028493,2]
[359282770,1745891471938,-470.0,0.00028493,2]
[359282771,1745891471948,-608.48,0.00028493,2]
[359282772,1745891471957,-470.0,0.00028493,2]
[359282773,1745891471967,-567.75,0.00028493,2]
[359282774,1745891471976,-470.0,0.00028493,2]
[359282775,1745891471985,-470.0,0.00028493,2]
[359282776,1745891471995,-470.0,0.00028493,2]
[359282777,1745891472005,-470.0,0.00028493,2]
[359282778,1745891472187,-575.6,0.00028493,2]
[359282779,1745891472197,-504.66,0.00028493,2]
[359282780,1745891472207,-470.0,0.00028493,2]
[359282781,1745891472218,-470.0,0.00028493,2]
[359282782,1745891472228,-470.0,0.00028493,2]
[359282783,1745891472238,-669.21,0.00028493,2]
[359282784,1745891472247,-470.0,0.00028493,2]
[359282785,1745891472258,-501.59,0.00028493,2]
[359282786,1745891472269,-470.0,0.00028493,2]
[359282787,1745891472280,-470.0,0.00028493,2]
[359282788,1745891472291,-575.94,0.00028493,2]
[359282789,1745891472301,-470.0,0.00028493,2]
[359282790,1745891472311,-470.0,0.00028493,2]
[359282791,1745891472321,-470.0,0.00028493,2]
[359282792,1745891472333,-694.09,0.00028493,2]
[359282793,1745891472343,-470.0,0.00028493,2]
[359282794,1745891472353,-476.74,0.00028493,2]
[359282795,1745891472363,-470.0,0.00028493,2]
[359282796,1745891472375,-470.0,0.00028493,2]
[359282797,1745891472385,-470.0,0.00028493,2]
[359282798,1745891472396,-698.7,0.00028493,2]
[359282799,1745891472405,-470.0,0.00028493,2]
[359282800,1745891472416,-608.22183357,0.00028493,2]
[359282801,1745891472426,-470.0,0.00028493,2]
[359282802,1745891472436,-470.0,0.00028493,2]
[359282803,1745891472447,-470.0,0.00028493,2]
[359282804,1745891472457,-470.0,0.00028493,2]
[359282805,1745891472467,-470.0,0.00028493,2]
[359282806,1745891472477,-470.0,0.00028493,2]
[359282807,1745891472487,-441.66418963,0.00028493,2]
[359282808,1745891472499,-470.0,0.00028493,2]
[359282809,1745891472511,-1073.63,0.00028493,2]
[359282810,1745891472520,-470.0,0.00028493,2]
[359282811,1745891472530,-470.0,0.00028493,2]
[359282812,1745891472539,-470.0,0.00028493,2]
[359282813,1745891472550,-470.0,0.00028493,2]
[359282814,1745891472560,-678.29,0.00028493,2]
[359282815,1745891472571,-470.0,0.00028493,2]
[359282816,1745891472580,-470.0,0.00028493,2]
[359282817,1745891472590,-470.0,0.00028493,2]
[359282818,1745891472600,-470.0,0.00028493,2]
[359282819,1745891472609,-470.0,0.00028493,2]
[359282820,1745891472620,-310.5030047,0.00028493,2]
[359282821,1745891472630,-470.0,0.00028493,2]
[359282822,1745891472640,-470.0,0.00028493,2]
[359282823,1745891472649,-470.0,0.00028493,2]
[359282824,1745891472659,-470.0,0.00028493,2]
[359282825,1745891472668,-470.0,0.00028493,2]
[359282826,1745891472678,-470.0,0.00028493,2]
[359282827,1745891472687,-470.0,0.00028493,2]
[359282828,1745891472696,-470.0,0.00028493,2]
[359282829,1745891472705,-470.0,0.00028493,2]
[359282830,1745891472715,-470.92,0.00028493,2]
[359282831,1745891472724,-470.0,0.00028493,2]
[359282832,1745891472734,-470.0,0.00028493,2]
[359282833,1745891472743,-470.0,0.00028493,2]
[359282834,1745891472754,-470.0,0.00028493,2]
[359282835,1745891472766,-470.0,0.00028493,2]
[359282836,1745891472779,-470.0,0.00028493,2]
[359282837,1745891472792,-695.67,0.00028493,2]
[359282838,1745891472803,-470.0,0.00028493,2]
[359282839,1745891472815,-470.0,0.00028493,2]
[359282840,1745891472825,-470.0,0.00028493,2]
[359282841,1745891472836,-470.0,0.00028493,2]
[359282842,1745891472845,-470.0,0.00028493,2]
[359282843,1745891472855,-470.0,0.00028493,2]
[359282844,1745891472865,-470.0,0.00028493,2]
[359282845,1745891472876,-263.19250192,0.00028493,2]
[359282846,1745891472886,-470.0,0.00028493,2]
[359282847,1745891472895,-512.93,0.00028493,2]
[359282848,1745891472905,-549.33,0.00028493,2]
[359282849,1745891472916,-470.0,0.00028493,2]
[359282850,1745891472927,-470.0,0.00028493,2]
[359282851,1745891472937,-470.0,0.00028493,2]
[359282852,1745891472947,-470.0,0.00028493,2]
[359282853,1745891472957,-470.0,0.00028493,2]
[359282854,1745891472967,-470.0,0.00028493,2]
[359282855,1745891472977,-470.0,0.00028493,2]
[359282856,1745891472989,-489.74,0.00028493,2]
[359282857,1745891472999,-470.0,0.00028493,2]
[359282858,1745891473009,-470.0,0.00028493,2]
[359282859,1745891473020,-926.6,0.00028493,2]
[359282860,1745891473030,-470.0,0.00028493,2]
[359282861,1745891473041,-470.0,0.00028493,2]
[359282862,1745891473052,-55510.47,0.00028493,2]
[359282863,1745891473062,-236.47488633,0.00028493,2]
[359282864,1745891473072,-470.0,0.00028493,2]
[359282865,1745891473082,-470.0,0.00028493,2]
[359282866,1745891473092,-470.0,0.00028493,2]
[359282867,1745891473101,-470.0,0.00028493,2]
[359282868,1745891473111,-470.0,0.00028493,2]
[359282869,1745891473120,-470.0,0.00028493,2]
[359282870,1745891473130,-470.0,0.00028493,2]
[359282871,1745891473140,-470.0,0.00028493,2]
[359282872,1745891473151,-1415.32,0.00028493,2]
[359282873,1745891473160,-470.0,0.00028493,2]
[359282874,1745891473170,-470.0,0.00028493,2]
[359282875,1745891473181,-470.0,0.00028493,2]
[359282876,1745891473192,-365.5291929,0.00028493,2]
[359282877,1745891473201,-470.0,0.00028493,2]
[359282878,1745891473211,-618.86,0.00028493,2]
[359282879,1745891473222,-4571.21,0.00028493,2]
[359282880,1745891473232,-470.0,0.00028493,2]
[359282881,1745891473242,-470.0,0.00028493,2]
[359282882,1745891473252,-470.0,0.00028493,2]
[359282883,1745891473261,-1013.11,0.00028493,2]
[359282884,1745891473271,-250.0,0.00028493,2]
[359282885,1745891473281,-992.65,0.00028493,2]
[359282886,1745891473291,-470.0,0.00028493,2]
[359282887,1745891473301,-586.6,0.00028493,2]
[359282888,1745891473311,-1684.71,0.00028493,2]
[359282889,1745891473321,-470.0,0.00028493,2]
[359282890,1745891473332,-151.0,0.00028493,7]
[359282891,1745891473343,-151.0,0.00028493,7]
[359282892,1745891473352,-470.0,0.00028493,2]
[359282893,1745891473362,-470.0,0.00028493,2]
[359282894,1745891473372,-470.0,0.00028493,2]
[359282895,1745891473381,-391.25564441,0.00028493,2]
[359282896,1745891473391,-14565.27,0.00028493,2]
[359282897,1745891473401,-470.0,0.00028493,2]
[359282898,1745891473411,-470.0,0.00028493,2]
[359282899,1745891473421,-724.463176,0.00028493,2]
[359282900,1745891473431,-470.0,0.00028493,2]
[359282901,1745891473441,-470.0,0.00028493,2]
[359282902,1745891473451,-470.0,0.00028493,2]
[359282903,1745891473462,-472.94664106,0.00028493,2]
[359282904,1745891473471,-470.0,0.00028493,2]
[359282905,1745891473482,-470.0,0.00028493,2]
[359282906,1745891473493,-470.0,0.00028493,2]
[359282907,1745891473504,-470.0,0.00028493,2]
[359282908,1745891473516,-470.0,0.00028493,2]
[359282909,1745891473526,-499.1,0.00028493,2]
[359282910,1745891473536,-746.52,0.00028493,2]
[359282911,1745891473546,-470.0,0.00028493,2]
[359282912,1745891473555,-470.0,0.00028493,2]
[359282913,1745891473565,-560.29,0.00028493,2]
[359282914,1745891473575,-206.282,0.00028493,7]
[359282915,1745891473587,-470.0,0.00028493,2]
[359282916,1745891473597,-504.68,0.00028493,2]
[359282917,1745891473606,-470.0,0.00028493,2]
[359282918,1745891473615,-470.0,0.00028493,2]
[359282919,1745891473625,-558.42,0.00028493,2]
[359282920,1745891473635,-151.0,0.00028493,7]
[359282921,1745891473645,-464.66196191,0.00028493,2]
[359282922,1745891473655,-470.0,0.00028493,2]
[359282923,1745891473665,-470.0,0.00028493,2]
[359282924,1745891473675,-5545.091631,0.00028493,2]
[359282925,1745891473685,-151.0,0.00028493,7]
[359282926,1745891473695,-470.0,0.00028493,2]
[359282927,1745891473705,-470.0,0.00028493,2]
[359282928,1745891473715,-1047.69,0.00028493,2]
[359282929,1745891473725,-206.282,0.00028493,7]
[359282930,1745891473735,-300.0,0.00028493,2]
[359282931,1745891473744,-470.0,0.00028493,2]
[359282932,1745891473754,-470.0,0.00028493,2]
[359282933,1745891473767,-156.92108197,0.00028493,2]
[359282934,1745891473777,-470.0,0.00028493,2]
[359282935,1745891473787,-472.85,0.00028493,2]
[359282936,1745891473798,-561.41516546,0.00028493,2]
[359282937,1745891473808,-470.0,0.00028493,2]
[359282938,1745891473817,-470.0,0.00028493,2]
[359282939,1745891473829,-1132.811667,0.00028493,2]
[359282940,1745891473840,-470.0,0.00028493,2]
[359282941,1745891473850,-2265.36,0.00028493,2]
[359282942,1745891473859,-361.92779095,0.00028493,2]
[359282943,1745891473869,-470.0,0.00028493,2]
[359282944,1745891473878,-483.38,0.00028493,2]
[359282945,1745891473888,-1175.89,0.00028493,2]
[359282946,1745891473898,-470.0,0.00028493,2]
[359282947,1745891473908,-470.0,0.00028493,2]
[359282948,1745891473918,-866.46,0.00028493,2]
[359282949,1745891473928,-588.59,0.00028493,2]
[359282950,1745891473937,-470.0,0.00028493,2]
[359282951,1745891473947,-470.0,0.00028493,2]
[359282952,1745891473958,-699.58,0.00028493,2]
[359282953,1745891473969,-470.0,0.00028493,2]
[359282954,1745891473979,-470.0,0.00028493,2]
[359282955,1745891473989,-338.32841734,0.00028493,2]
[359282956,1745891473998,-470.0,0.00028493,2]
[359282957,1745891474008,-470.0,0.00028493,2]
[359282958,1745891474018,-540.83,0.00028493,2]
[359282959,1745891474028,-470.0,0.00028493,2]
[359282960,1745891474037,-679.4,0.00028493,2]